Cogmind - Beta 15 @@@ ROGUE MODE // 2025.05.20 @ 23:23:25 Player: Cogchaaaan Result: Defending 0bPrime! Performance ------------- Evolutions (8) 4000 Regions Visited (29) 5800 Robots Destroyed (275) 1375 Value Destroyed (10452) 10452 Prototype IDs (137) 2740 Alien Tech Used (5) 1000 Bonus (26650) 26650 TOTAL SCORE: 52017 Bonus ------- High Alert Combat Kills 3674 Follower Combat Kills 1162 Registered with UFD 300 Met Optimus in HQ 500 Met Imprinter 300 Met Zhirov 300 Met Warlord at Base 500 MAIN.C Attacked Warlord 500 Used Core Reset Matrix 3000 Met Optimus at Protoforge 1000 Completed Drillbomb Mission10000 Optimus Survived to 0b1 3000 Win 3000 Friendly Fire -586 Cogmind --------- Core Integrity 996/1450 Matter 226/300 Energy 240/240 System Corruption 8% Temperature Cool (0) Movement Flying (36) Location 0bPrime Parts ------- > --- POWER (2) -------- Micro Antimatter Reactor Light Quantum Reactor > --- PROPULSION (8) --- Impulse Thruster Array Impulse Thruster Array Impulse Thruster Array Impulse Thruster Array > --- UTILITY (11) ----- Scrap Suit Medium Storage Unit Experimental Optical Array Experimental Targeting Computer Experimental Core Analyzer Experimental Core Analyzer Centrium Light Armor Plating Centrium Light Armor Plating Graphene Brace (fused) A0-MCA's Component Scanner > --- WEAPON (2) ------- Overtuned Linear Accelerator Compact Linear Accelerator > --- INVENTORY (10) --- (None) Peak State ------------ > --- POWER ------------ Micro Antimatter Reactor Micro Antimatter Reactor > --- PROPULSION ------- Cooled Nuclear Pulse Thruster Cooled Nuclear Pulse Thruster Electron Diverter Electron Diverter Impulse Thruster Array Experimental Surge Thruster Experimental Surge Thruster > --- UTILITY ---------- 0bPrime Scrap Suit Experimental Heat Sink Medium Storage Unit Experimental Optical Array Experimental Core Analyzer Experimental Core Analyzer Advanced Phase Shifter Experimental Weapon Shielding Graphene Brace A0-MCA's Component Scanner > --- WEAPON ----------- Perforator > --- INVENTORY -------- UFD Drillbomb [Rating: 205] Favorites ----------- Power Heavy Ion Engine Engine Heavy Ion Engine Power Core Micro Nuclear Core Reactor Micro Antimatter Reactor Propulsion Light Treads Treads Light Treads Leg Aluminum Leg Hover Unit Aerolev Unit Flight Unit Cooled Nuclear Pulse Thruster Utility Core Analyzer Device Advanced Heat Sink Storage High-capacity Storage Unit Processor Core Analyzer Hackware Hacking Suite Protection Layered Medium Armor Plating Artifact Phase Redirector Weapon Enhanced Autogun Energy Gun Spread Laser Energy Cannon Matter Neutralizer Ballistic Gun Enhanced Autogun Ballistic Cannon Perforator Launcher Fusion Bomb Launcher Special Weapon Remote Datajack Impact Weapon Great Maul Slashing Weapon Katana Piercing Weapon Spear Build | -11 -10 -10 -9 -9 -8 -8 -8 -8 -6 -6 -6 -6 -6 -6 -5 -5 -5 -5 -5 -4 -4 -4 -4 -3 -3 -3 -2 -2 -2 ------- Run | Yrd Mat Min Mat Min Mat Sto Rec Scr Fac Was Fac Low Low Zio Pro Fac Upp Upp Zhi Pro Fac Upp War Pro Res Qua Res Tes Frg Slots Evolved 16 | . . . 2 . 2 . . . 4 . . . . . . 2 . . . . 2 . . . 2 . 2 . . Power 1 | . . . . . . . . . . . . . . . . . . . . . 1 . . . . . . . . Propulsion 6 | . . . 1 . . . . . 2 . . . . . . 1 . . . . 1 . . . . . 1 . . Utility 9 | . . . 1 . 2 . . . 2 . . . . . . 1 . . . . . . . . 2 . 1 . . Weapon . | . . . . . . . . . . . . . . . . . . . . . . . . . . . . . . Parts Attached 188 | 8 12 3 21 5 26 9 3 4 18 1 11 . . 2 . 5 . . . . 6 . 4 . 5 6 4 3 32 Power 18 | 1 1 2 3 . 2 . . . 2 . . . . . . . . . . . 1 . . . 1 . 1 . 4 Engine 9 | 1 1 2 3 . 2 . . . . . . . . . . . . . . . . . . . . . . . . Core 3 | . . . . . . . . . 2 . . . . . . . . . . . 1 . . . . . . . . Reactor 6 | . . . . . . . . . . . . . . . . . . . . . . . . . 1 . 1 . 4 Propulsion 61 | 2 5 . 9 1 8 3 1 2 7 1 5 . . . . 3 . . . . 2 . 1 . 1 . 1 . 9 Treads 24 | . 2 . 9 1 7 3 . 2 . . . . . . . . . . . . . . . . . . . . . Leg 5 | 2 3 . . . . . . . . . . . . . . . . . . . . . . . . . . . . Wheel . | . . . . . . . . . . . . . . . . . . . . . . . . . . . . . . Hover 2 | . . . . . 1 . 1 . . . . . . . . . . . . . . . . . . . . . . Flight 30 | . . . . . . . . . 7 1 5 . . . . 3 . . . . 2 . 1 . 1 . 1 . 9 Utility 68 | 2 3 . 6 1 9 2 2 1 6 . 5 . . . . 2 . . . . 2 . 1 . 2 4 2 2 16 Device 24 | 1 . . 4 . 2 1 . . 2 . 2 . . . . . . . . . 1 . . . 1 2 1 1 6 Storage 8 | 1 1 . 2 1 . . . . 1 . . . . . . . . . . . . . . . . . 1 1 . Processor 15 | . 1 . . . 3 . 2 . 2 . . . . . . 1 . . . . 1 . . . . 1 . . 4 Hackware 6 | . . . . . 1 1 . . . . 1 . . . . 1 . . . . . . 1 . 1 . . . . Protection 14 | . 1 . . . 3 . . 1 1 . 2 . . . . . . . . . . . . . . . . . 6 Artifact 1 | . . . . . . . . . . . . . . . . . . . . . . . . . . 1 . . . Weapon 41 | 3 3 1 3 3 7 4 . 1 3 . 1 . . 2 . . . . . . 1 . 2 . 1 2 . 1 3 Energy Gun 6 | 1 . . 3 . 2 . . . . . . . . . . . . . . . . . . . . . . . . Energy Cannon 3 | . . . . 1 . . . . 1 . . . . . . . . . . . . . . . . 1 . . . Ballistic Gun 12 | 2 3 1 . . 3 2 . . . . . . . . . . . . . . . . . . . . . . 1 Ballistic Cannon 3 | . . . . . . . . . . . . . . . . . . . . . . . . . . . . 1 2 Launcher 4 | . . . . 2 . 1 . . . . . . . 1 . . . . . . . . . . . . . . . Special Weapon 4 | . . . . . . 1 . 1 1 . . . . . . . . . . . . . 1 . . . . . . Impact Weapon 1 | . . . . . 1 . . . . . . . . . . . . . . . . . . . . . . . . Slashing Weapon 2 | . . . . . 1 . . . . . . . . . . . . . . . . . . . . 1 . . . Piercing Weapon 6 | . . . . . . . . . 1 . 1 . . 1 . . . . . . 1 . 1 . 1 . . . . Special Melee Weapon . | . . . . . . . . . . . . . . . . . . . . . . . . . . . . . . Unidentified Prototypes 13 | . . . 1 2 4 1 1 . 1 . . . . . . . . . 1 . . . . . . 2 . . . Corrupted Parts 2 | . . . . 2 . . . . . . . . . . . . . . . . . . . . . . . . . System Corruption 6 | . . . . 6 . . . . . . . . . . . . . . . . . . . . . . . . . Parts Lost 34 | . 2 . 2 . 8 1 . . . 1 3 . . . . . . . . . 1 . . . . 2 1 . 13 Power 2 | . 1 . . . . . . . . . . . . . . . . . . . . . . . . . . . 1 Propulsion 11 | . . . . . 3 . . . . 1 1 . . . . . . . . . 1 . . . . . . . 5 Utility 15 | . 1 . 1 . 2 1 . . . . 1 . . . . . . . . . . . . . . 2 1 . 6 Weapon 6 | . . . 1 . 3 . . . . . 1 . . . . . . . . . . . . . . . . . 1 Highest Loss Streak 5 | . 1 . 1 . 3 1 . . . 1 3 . . . . . . . . . 1 . . . . 1 1 . 5 To Critical Strikes . | . . . . . . . . . . . . . . . . . . . . . . . . . . . . . . Average Backups 14 | 1 8 14 19 19 19 19 20 19 10 9 9 10 10 10 10 9 10 10 9 9 9 9 9 10 9 9 8 8 3 Power 1 | . . . 1 1 1 1 1 1 1 1 1 1 1 1 1 1 1 1 1 1 . 1 1 1 1 1 1 1 . Propulsion 3 | . 2 2 5 6 5 5 7 6 1 . . 1 1 1 1 1 2 2 2 2 . . . 1 1 1 . . . Utility 5 | . 2 5 6 6 8 8 7 7 5 5 5 5 5 4 4 3 3 3 3 4 5 6 6 6 4 3 2 2 . Weapon 3 | . 2 5 4 3 3 3 3 2 1 2 1 2 2 2 3 2 3 3 2 1 2 2 2 2 2 2 3 3 2 Tool/Special . | . . . . . . . . . . . . . . . . . . . . . . . . . . . . . . Unused Backups 36 | . 1 2 8 2 3 . 2 1 4 . . . . 1 . 3 . . . . 2 . . . . 3 . 2 2 Power 4 | . . . 2 . . . . . 1 . . . . . . . . . . . . . . . . 1 . . . Propulsion 3 | . . . . . . . . 1 . . . . . . . 2 . . . . . . . . . . . . . Utility 14 | . . 1 5 1 1 . 2 . 1 . . . . 1 . 1 . . . . 1 . . . . . . . . Weapon 11 | . 1 1 1 1 2 . . . 2 . . . . . . . . . . . . . . . . . . 1 2 Tool/Special 4 | . . . . . . . . . . . . . . . . . . . . . 1 . . . . 2 . 1 . Average Slot Usage (%) 95 | . 99 100 99 100 98 94 100 99 94 87 88 93 93 93 93 93 94 94 93 94 94 94 98 100 93 90 89 85 82 Engine 6 | . 14 14 10 11 9 9 9 9 . . . . . . . . . . . . . . . . . . . . . Core 1 | . . . . . . . . . 5 6 6 6 6 6 6 5 5 5 5 5 10 10 10 10 4 4 . . . Treads 16 | . 7 28 32 33 26 26 27 27 . . . . . . . . . . . . . . . . . . . . . Leg 1 | . 20 . . . . . . . . . . . . . . . . . . . . . . . . . . . . Flight 11 | . . . . . . . . . 32 30 29 33 33 33 33 34 35 35 35 35 35 36 36 36 29 28 30 28 24 Device 9 | . 4 . 10 11 12 8 9 6 12 13 12 13 13 13 13 11 11 11 11 11 10 10 10 10 14 13 16 17 13 Storage 8 | . 14 14 11 11 9 9 9 9 6 6 6 6 6 6 6 5 5 5 5 5 5 5 5 5 4 4 4 4 4 Processor 14 | . 7 14 11 11 17 18 18 18 13 13 13 13 13 13 13 16 17 17 17 17 15 15 10 10 9 9 8 8 17 Hackware 4 | . . . . . 3 1 9 9 6 6 10 6 6 6 6 5 5 5 5 5 5 5 9 10 13 14 13 8 1 Protection 2 | . 1 . . . 2 3 . 2 6 3 2 6 6 6 6 5 5 5 5 5 5 5 5 5 4 4 4 4 5 Energy Gun 5 | . . . 21 21 9 5 . . . . . . . . . . . . . . . . . . . . . . . Ballistic Gun 7 | . 27 28 . . 7 10 18 17 . . . . . . . . . . . . . . . . . . . . . Piercing Weapon 1 | . . . . . . . . . 3 6 5 6 6 6 6 5 5 5 4 5 5 5 8 9 5 1 . . . Peak Build Rating 205 | 7 9 10 20 26 38 40 46 42 61 61 69 62 62 77 68 91 91 85 85 92 105 105 116 116 136 160 176 178 205 Average Rating 57 | 5 8 9 18 18 34 37 41 40 51 52 56 62 62 62 62 82 85 85 84 85 97 98 111 113 128 150 173 164 182 On Entrance 70 | . 7 9 10 18 20 38 40 42 39 55 49 62 62 62 62 62 85 85 85 85 85 100 99 116 114 136 158 164 170 Naked Turns . | . . . . . . . . . . . . . . . . . . . . . . . . . . . . . . Heaviest Build 62 | 12 26 28 55 55 57 59 55 57 25 25 30 28 28 29 28 28 28 28 29 28 37 35 41 49 46 47 59 51 62 Greatest Support 69 | 20 40 40 60 63 69 62 62 62 27 27 29 28 28 28 28 37 41 41 28 41 55 53 54 54 47 56 64 64 64 Greatest Overweight (x) 3 | 3 1 . 1 . 1 2 1 . . . 1 . . 1 . 1 . . 1 . . . . 1 . . 1 . 1 Average Overweight (x) . | . . . . . . . . . . . . . . . . . . . . . . . . . . . . . . Largest Inventory Capacity 25 | 8 15 15 25 20 20 25 20 20 20 10 10 10 10 10 10 10 10 10 10 10 10 10 10 10 10 10 15 10 10 Average Capacity 15 | 7 10 15 20 20 20 20 20 20 10 10 10 10 10 10 10 10 10 10 10 10 10 10 10 10 10 10 10 10 10 Most Carried 20 | 3 13 15 20 20 20 20 20 20 20 10 10 10 10 10 10 10 10 10 10 10 10 10 10 10 10 10 10 10 10 Average Carried 14 | 1 8 14 19 19 19 19 19 19 9 9 9 10 10 9 9 9 9 10 9 9 9 9 9 10 9 9 8 9 6 Final Capacity 20 | 8 15 15 20 20 20 20 20 20 10 10 10 10 10 10 10 10 10 10 10 10 10 10 10 10 10 10 10 10 10 Final Carried 20 | 3 13 15 19 20 20 20 20 20 10 9 10 10 10 10 10 10 10 10 10 10 9 10 10 10 10 10 10 9 . Class Distribution -------------------- 26% | Mutant 20% | Commander-Mutant 18% | Scavenger-Mutant 18% | Scout 5% | Hacker-Scout 4% | Scavenger-Sprinter Dominant Class ---------------- Mutant | -10/Materials Scavenger-Mutant | -10/Mines Scavenger-Mutant | -9/Materials Mutant | -9/Mines Mutant | -8/Materials Commander-Mutant | -8/Storage Commander-Mutant | -8/Recycling Commander-Mutant | -8/Scraptown Scout | -6/Factory Scout | -6/Waste Scout | -6/Factory Scout | -6/Lower Caves Scout | -6/Lower Caves Scout | -6/Zion Scout | -5/Proximity Caves Scout | -5/Factory Scout | -5/Upper Caves Scout | -5/Upper Caves Assassin | -5/Zhirov Scout | -4/Proximity Caves Scout | -4/Factory Scout | -4/Upper Caves Hacker-Scout | -4/Warlord Hacker-Scout | -3/Proximity Caves Hacker-Ninja | -3/Research Hacker-Sprinter | -3/Quarantine Hacker-Sprinter | -2/Research Hacker-Ninja | -2/Testing Scavenger-Sprinter | -2/Protoforge Resources | -11 -10 -10 -9 -9 -8 -8 -8 -8 -6 -6 -6 -6 -6 -6 -5 -5 -5 -5 -5 -4 -4 -4 -4 -3 -3 -3 -2 -2 -2 ----------- Run | Yrd Mat Min Mat Min Mat Sto Rec Scr Fac Was Fac Low Low Zio Pro Fac Upp Upp Zhi Pro Fac Upp War Pro Res Qua Res Tes Frg Matter Collected 11605 | 292 484 174 280 200 1940 1150 120 . 335 . 255 . . 61 20 . 82 85 57 99 23 82 176 42 223 88 99 140 5098 Remotely . | . . . . . . . . . . . . . . . . . . . . . . . . . . . . . . Salvage Created 12694 | 66 558 243 950 166 2301 1205 80 . 486 . 308 . . . . . . . 271 51 153 . . 69 113 . 179 190 5305 Parts 662 | 9 49 15 69 15 106 69 1 . 13 . 11 . . . . . . . 6 4 5 . . 6 3 . 11 8 262 Haulers Intercepted 29 | . 1 . 6 . 6 6 . . 4 . 2 . . . . . . . . . 1 . . . 1 . 1 1 . Recyclers Shooed 9 | 1 1 . 2 . 3 1 1 . . . . . . . . . . . . . . . . . . . . . . Parts Field Recycled . | . . . . . . . . . . . . . . . . . . . . . . . . . . . . . . Retrieved Matter . | . . . . . . . . . . . . . . . . . . . . . . . . . . . . . . Parts Self-Destructed 22 | . . . . . . . . . . . . . . . 7 . . . 6 4 . . . 5 . . . . . Prevented 4 | . . . . . . . . . . . . . . . . . . . . . . . . 4 . . . . . Kills | -11 -10 -10 -9 -9 -8 -8 -8 -8 -6 -6 -6 -6 -6 -6 -5 -5 -5 -5 -5 -4 -4 -4 -4 -3 -3 -3 -2 -2 -2 ------- Run | Yrd Mat Min Mat Min Mat Sto Rec Scr Fac Was Fac Low Low Zio Pro Fac Upp Upp Zhi Pro Fac Upp War Pro Res Qua Res Tes Frg Combat Hostiles Destroyed 196 | . 18 5 29 6 35 20 . . . . 4 . . . . . . . . 5 . . . 5 . . 4 . 65 Melee 5 | . . . . . . . . . . . 4 . . . . . . . . 1 . . . . . . . . . Guns 107 | . 18 5 29 4 31 20 . . . . . . . . . . . . . . . . . . . . . . . Cannons 65 | . . . . . . . . . . . . . . . . . . . . . . . . . . . . . 65 AOE 17 | . . . . 1 3 . . . . . . . . . . . . . . 4 . . . 5 . . 4 . . Classes Destroyed 22 | 2 4 1 2 . 4 1 . . . . . . . . . . . . . . . . . . . . . . 8 Worker 10 | . . . 4 . 3 2 . . . . . . . . . . . . . . . . . . . . . . 1 Builder 13 | . . 4 3 1 . 1 . . . . . . . . . . . . . . . . . . . . 3 1 . Tunneler 2 | 1 . . . . 1 . . . . . . . . . . . . . . . . . . . . . . . . Hauler 31 | . 1 . 6 . 6 6 . . 4 . 2 . . . . . . . . . 1 . . . 1 . 1 1 2 Recycler 8 | 1 1 . . . 5 . 1 . . . . . . . . . . . . . . . . . . . . . . Mechanic 1 | . . . . . . . . . . . . . . . . . . . . . . . . . . . . . 1 Operator 1 | . . . . . . 1 . . . . . . . . . . . . . . . . . . . . . . . Drone 3 | . . . . . . . . . . . . . . . . . . . . . . . . . . . . . 3 Watcher 12 | . 2 . 2 . 3 1 . . 2 . . . . . . . . . . . 1 . . . . . . 1 . Swarmer 64 | . 11 3 13 5 3 6 . . . . 4 . . . . . . . . 5 . . . 5 . . 4 . 5 Grunt 55 | . 7 2 8 . 17 6 . . . . . . . . . . . . . . . . . . . . . . 15 Brawler 3 | . . . . . 1 . . . . . . . . . . . . . . . . . . . . . . . 2 Duelist 1 | . . . . . 1 . . . . . . . . . . . . . . . . . . . . . . . . Protector 2 | . . . . . . . . . . . . . . . . . . . . . . . . . . . . . 2 Sentry 27 | . . . 8 . 9 7 . . . . . . . . . . . . . . . . . . . . . . 3 Specialist 2 | . . . . . 2 . . . . . . . . . . . . . . . . . . . . . . . . Hunter 10 | . . . . . 2 1 . . . . . . . . . . . . . . . . . . . . . . 7 Programmer 11 | . . . . . . . . . . . . . . . . . . . . . . . . . . . . . 11 Hotshot 4 | . . . . . . . . . . . . . . . . . . . . . . . . . . . . . 4 Striker 8 | . . . . . . . . . . . . . . . . . . . . . . . . . . . . . 8 Executioner 4 | . . . . . . . . . . . . . . . . . . . . . . . . . . . . . 4 Scrapoid 3 | . . . . . . . . . . . . . . . . . . . . . . . . . . . . . 3 Scraphulk 1 | . . . . . . . . . . . . . . . . . . . . . . . . . . . . . 1 Best Kill Streak 22 | 2 6 3 8 4 10 8 1 . 2 . 4 . . . . . . . . 5 1 . . 5 1 . 8 1 22 Combat Bots Only 22 | . 6 3 8 4 8 8 . . . . 4 . . . . . . . . 5 . . . 5 . . 4 . 22 Max Kills in Single Turn 4 | 1 1 1 2 2 2 2 1 . 1 . 1 . . . . . . . . 4 1 . . 3 1 . 3 1 3 Gunslinging 1 | . . . 1 . . 1 . . . . . . . . . . . . . . . . . . . . . . . Exploded 4 | . . . . 1 2 . . . . . . . . . . . . . . 4 . . . 3 . . 3 . . Melee 1 | . . . . . . . . . . . 1 . . . . . . . . 1 . . . . . . . . . Uniques/NPCs Destroyed 1 | . . . . 1 . . . . . . . . . . . . . . . . . . . . . . . . . YI-UF0 (-9/Mines) Combat | -11 -10 -10 -9 -9 -8 -8 -8 -8 -6 -6 -6 -6 -6 -6 -5 -5 -5 -5 -5 -4 -4 -4 -4 -3 -3 -3 -2 -2 -2 -------- Run | Yrd Mat Min Mat Min Mat Sto Rec Scr Fac Was Fac Low Low Zio Pro Fac Upp Upp Zhi Pro Fac Upp War Pro Res Qua Res Tes Frg Hostile Shots Fired 868 | . 94 44 84 12 173 77 4 . . 1 24 . . . 11 6 6 . . 5 4 . 29 9 . 38 28 6 213 Missed 329 | . 24 15 25 4 48 23 1 . . . 9 . . . 2 4 3 . . 4 1 . 17 4 . 29 13 3 100 Hits 539 | . 70 29 59 8 125 54 3 . . 1 15 . . . 9 2 3 . . 1 3 . 12 5 . 9 15 3 113 Melee 3 | . . . . . 1 . . . . 1 . . . . . . . . . . . . . . . . . . 1 Projectile 536 | . 70 29 59 8 124 54 3 . . . 15 . . . 9 2 3 . . 1 3 . 12 5 . 9 15 3 112 AOE 3 | . . . . 2 . . . . . . . . . . . . . . . . . . 1 . . . . . . Critical Strikes 20 | . 1 . . . 8 2 . . . 1 . . . . . . . . . . . . 3 . . . . 1 4 Actively Blocked 4 | . . . . . . . . . . . . . . . . . . . . . . . . . . . . . 4 Damage Taken 9664 | . 701 279 795 128 1963 754 47 . . 39 317 . . . 140 75 58 . . 13 102 . 266 113 . 169 356 107 3242 Core 1516 | . 70 74 89 74 321 99 15 . . . 165 . . . 17 . 23 . . 13 . . 75 . . 27 74 24 356 Absorbed by Shields . | . . . . . . . . . . . . . . . . . . . . . . . . . . . . . . Redirected to Shielding 295 | . . . . . . . . . . . . . . . . . . . . . . . . . . . . . 295 Ignored by Resistances 48 | . . . . . 2 46 . . . . . . . . . . . . . . . . . . . . . . . Regen/Repaired (Parts) 1271 | . . . 226 . 109 297 . . 15 . . . . 159 . . . . . . . . 109 . . 74 65 186 31 Core Remaining (%) 72 | 100 . 42 . 59 . . . 20 . . . . . . 78 . . . . 96 . . . 93 . 97 . . 68 Volleys Fired 592 | 3 80 31 75 10 123 70 3 . 8 1 31 . . . 1 8 1 . . 4 3 2 4 10 4 6 4 . 110 Largest 2 | 2 2 2 2 2 2 2 2 . 1 1 1 . . . 1 1 1 . . 1 1 1 1 1 1 1 1 . 2 Hottest 130 | 40 40 40 130 130 130 122 50 . 105 105 105 . . . 105 105 105 . . 105 105 105 52 105 105 110 52 . 115 Shots Fired 982 | 6 160 62 149 15 244 139 7 . 8 1 30 . . . 1 8 1 . . 4 3 2 4 10 4 6 4 . 114 Gun 774 | 6 160 62 149 9 242 138 7 . . . . . . . . . . . . . . . . . . . . . 1 Cannon 185 | . . . . 4 . . . . 7 1 30 . . . 1 8 1 . . 3 3 2 . 5 4 6 . . 110 Launcher 22 | . . . . 2 2 1 . . . . . . . . . . . . . 1 . . 4 5 . . 4 . 3 Special 1 | . . . . . . . . . 1 . . . . . . . . . . . . . . . . . . . . Kinetic 564 | 6 160 62 . . 161 70 7 . . . . . . . . . . . . . . . . . . . . . 98 Thermal 391 | . . . 149 9 81 68 . . 7 1 30 . . . 1 8 1 . . 3 3 2 . 5 4 6 . . 13 Explosive 22 | . . . . 2 2 1 . . . . . . . . . . . . . 1 . . 4 5 . . 4 . 3 Electromagnetic 4 | . . . . 4 . . . . . . . . . . . . . . . . . . . . . . . . . Robot Hit Streak 76 | 5 10 7 27 6 38 76 6 . 4 . . . . . . . . . . . . . 1 . . . . . 12 Robot Miss Streak 15 | . 7 4 9 4 3 4 1 . . . 1 . . . . . . . . . . . . . . . . . 15 Penetration Max 2 | . . . . . . . . . . . . . . . . . . . . . . . . . . . . . 2 Secondary Targets 18 | . 2 2 2 1 7 4 . . . . . . . . . . . . . . . . . . . . . . . Max Gunslinging Chain 1 | . 1 1 1 1 1 1 . . . . . . . . . . . . . . . . . . . . . . . Shots Hit Robots 750 | 5 92 35 131 13 214 102 6 . 15 . 11 . . . 2 2 . . 6 1 8 . 1 . 2 3 3 5 93 Core Hits 697 | 3 40 15 170 14 138 49 4 . 7 . 7 . . . . . . . 3 4 4 . 4 7 1 . 9 1 217 Critical Kills 73 | . 1 1 . . 1 1 . . . . . . . . . . . . . . . . . . . . . . 69 Critical Parts Destroyed 88 | . . 2 . . . . . . . . . . . . . . . . . . . . . . . . . . 86 Critical Strikes 187 | . 1 3 . 1 4 7 . . 2 . 3 . . . . . . . . . 1 . . . . . . . 165 Burn 9 | . . . . . 3 6 . . . . . . . . . . . . . . . . . . . . . . . Destroy 171 | . 1 3 . . 1 1 . . . . . . . . . . . . . . . . . . . . . . 165 Corrupt 1 | . . . . 1 . . . . . . . . . . . . . . . . . . . . . . . . . Sever 1 | . . . . . . . . . 1 . . . . . . . . . . . . . . . . . . . . Impale 5 | . . . . . . . . . 1 . 3 . . . . . . . . . 1 . . . . . . . . Melee Attacks 318 | . . . . . 6 6 . . 53 1 36 1 . 1 6 38 4 . 6 6 50 4 12 12 21 28 10 11 6 Impact 1 | . . . . . 1 . . . . . . . . . . . . . . . . . . . . . . . . Slashing 83 | . . . . . 5 6 . . 21 . . . . . . . . . . . . . . . . 24 10 11 6 Piercing 231 | . . . . . . . . . 32 1 36 1 . 1 6 38 4 . 6 6 50 4 10 11 21 4 . . . Entropic 3 | . . . . . . . . . . . . . . . . . . . . . . . 2 1 . . . . . Sneak Attacks 15 | . . . . . 1 . . . 4 . 2 . . . . 1 . . . . 1 . . . 1 . 3 2 . Combat Hostiles . | . . . . . . . . . . . . . . . . . . . . . . . . . . . . . . Follow-up Attacks . | . . . . . . . . . . . . . . . . . . . . . . . . . . . . . . Damage Inflicted 18226 | 52 984 380 2417 390 4092 2011 134 . 731 . 416 . . . 57 105 . . 458 454 379 . 377 435 141 286 1143 674 2110 Guns 9275 | 52 975 374 1946 76 3809 1916 107 . . . . . . . . . . . . . . . . . . . . . 20 Cannons 1937 | . . . . 101 . . . . . . . . . . . . . . . . . . . . . . . . 1836 Explosions 2940 | . . . 461 202 180 84 . . . . . . . . . . . . . 401 . . 377 435 . . 604 . 196 Melee 3960 | . . . . . 63 . . . 731 . 416 . . . 57 105 . . 458 53 379 . . . 141 286 539 674 58 Ramming 114 | . 9 6 10 11 40 11 27 . . . . . . . . . . . . . . . . . . . . . . Kinetic 6519 | 52 975 374 . . 2371 865 107 . . . . . . . . . . . . . . . . . . . . . 1775 Thermal 4592 | . . . 1946 76 1438 1051 . . . . . . . . . . . . . . . . . . . . . . 81 Explosive 2940 | . . . 461 202 180 84 . . . . . . . . . . . . . 401 . . 377 435 . . 604 . 196 Electromagnetic 101 | . . . . 101 . . . . . . . . . . . . . . . . . . . . . . . . . Impact . | . . . . . . . . . . . . . . . . . . . . . . . . . . . . . . Slashing 1834 | . . . . . 63 . . . 214 . . . . . . . . . . . . . . . . 286 539 674 58 Piercing 2126 | . . . . . . . . . 517 . 416 . . . 57 105 . . 458 53 379 . . . 141 . . . . Highest Corruption 11 | . . . 5 11 . 1 1 . . . 5 5 5 5 . 2 2 2 2 2 . . . . . . . . 8 Average Corruption 3 | . . . 4 5 . 1 1 . . . 5 5 5 5 . 2 2 2 2 2 . . . . . . . . 6 Corruption Purged . | . . . . . . . . . . . . . . . . . . . . . . . . . . . . . . Corruption Blocked . | . . . . . . . . . . . . . . . . . . . . . . . . . . . . . . Effects 170 | . . . 40 26 . 9 9 . . . 24 . 3 . . 4 2 . 1 2 . . . . . . . . 50 Message Errors 42 | . . . 13 8 . 2 . . . . 3 . 1 . . . . . . 2 . . . . . . . . 13 Matter Fused 52 | . . . 7 7 . 4 4 . . . 6 . 2 . . 4 2 . . . . . . . . . . . 16 Heat Flow Errors 22 | . . . 4 4 . 1 2 . . . 6 . . . . . . . . . . . . . . . . . 5 Energy Discharges 19 | . . . 7 2 . . . . . . 4 . . . . . . . . . . . . . . . . . 6 Parts Rejected 3 | . . . . . . . . . . . . . . . . . . . . . . . . . . . . . 3 Parts Fused 2 | . . . . 1 . . . . . . . . . . . . . . . . . . . . . . . . 1 Data Loss (minor) 13 | . . . 4 2 . . 2 . . . 2 . . . . . . . 1 . . . . . . . . . 2 Data Loss (major) 6 | . . . 1 1 . 1 . . . . 1 . . . . . . . . . . . . . . . . . 2 Misfires 4 | . . . 1 1 . 1 1 . . . . . . . . . . . . . . . . . . . . . . Alerts 2 | . . . 1 . . . . . . . 1 . . . . . . . . . . . . . . . . . . Weapon Failures 5 | . . . 2 . . . . . . . 1 . . . . . . . . . . . . . . . . . 2 Overload Shots . | . . . . . . . . . . . . . . . . . . . . . . . . . . . . . . Overflow Damage 883 | . . . 116 43 28 27 . . 35 . 7 . . . . 19 . . 128 88 33 . 6 . . 46 14 284 9 Projectiles 9 | . . . . . . . . . . . . . . . . . . . . . . . . . . . . . 9 Explosions 322 | . . . 116 43 28 27 . . . . . . . . . . . . . 88 . . 6 . . . 14 . . Melee 552 | . . . . . . . . . 35 . 7 . . . . 19 . . 128 . 33 . . . . 46 . 284 . Knockbacks 34 | . 1 . . . . . . . . . . . . . . . . . . . . . . . . . . . 33 Impact 1 | . 1 . . . . . . . . . . . . . . . . . . . . . . . . . . . . Kinetic 31 | . . . . . . . . . . . . . . . . . . . . . . . . . . . . . 31 Secondary 2 | . . . . . . . . . . . . . . . . . . . . . . . . . . . . . 2 Self-Inflicted Damage 95 | . . . 95 . . . . . . . . . . . . . . . . . . . . . . . . . . Shots 1 | . . . 1 . . . . . . . . . . . . . . . . . . . . . . . . . . Rammed 20 | . . 4 2 2 4 5 3 . . . . . . . . . . . . . . . . . . . . . . Targets Rammed 24 | . 2 4 2 2 5 5 4 . . . . . . . . . . . . . . . . . . . . . . Kicked 2 | . 2 . . . . . . . . . . . . . . . . . . . . . . . . . . . . Crushed 2 | . . . . . 1 . 1 . . . . . . . . . . . . . . . . . . . . . . Highest Temperature 271 | . 24 12 219 246 46 112 175 . 66 64 245 . . . 62 174 162 132 . 8 258 83 271 179 84 92 174 169 198 Average Temperature 45 | . 6 8 38 106 19 25 95 . 10 26 110 . . . 27 51 61 70 . 6 72 51 28 27 12 41 56 63 66 Received Heat Transfer 1813 | . 108 84 186 . 900 246 18 . . . 18 . . . . . . . . . . . 73 . . 9 18 . 153 Siege Activations . | . . . . . . . . . . . . . . . . . . . . . . . . . . . . . . Martial Activations . | . . . . . . . . . . . . . . . . . . . . . . . . . . . . . . Shielding Activations . | . . . . . . . . . . . . . . . . . . . . . . . . . . . . . . Robots Disrupted . | . . . . . . . . . . . . . . . . . . . . . . . . . . . . . . Combat Hostiles . | . . . . . . . . . . . . . . . . . . . . . . . . . . . . . . Robots Corrupted 1 | . . . . 1 . . . . . . . . . . . . . . . . . . . . . . . . . Combat Hostiles 1 | . . . . 1 . . . . . . . . . . . . . . . . . . . . . . . . . Parts Fried 2 | . . . . 2 . . . . . . . . . . . . . . . . . . . . . . . . . Impact Corruptions . | . . . . . . . . . . . . . . . . . . . . . . . . . . . . . . Robots Melted 1 | . . . . . 1 . . . . . . . . . . . . . . . . . . . . . . . . Combat Hostiles 1 | . . . . . 1 . . . . . . . . . . . . . . . . . . . . . . . . Parts Melted 14 | . . . 1 . 5 6 . . . . . . . . . . . . . . . . . . . . . . 2 Heat Transferred 7556 | . . . 2425 100 2367 2664 . . . . . . . . . . . . . . . . . . . . . . . Parts Sabotaged . | . . . . . . . . . . . . . . . . . . . . . . . . . . . . . . Parts Stolen . | . . . . . . . . . . . . . . . . . . . . . . . . . . . . . . Parts Stripped . | . . . . . . . . . . . . . . . . . . . . . . . . . . . . . . Power Chain Reactions . | . . . . . . . . . . . . . . . . . . . . . . . . . . . . . . Alert | -11 -10 -10 -9 -9 -8 -8 -8 -8 -6 -6 -6 -6 -6 -6 -5 -5 -5 -5 -5 -4 -4 -4 -4 -3 -3 -3 -2 -2 -2 ------- Run | Yrd Mat Min Mat Min Mat Sto Rec Scr Fac Was Fac Low Low Zio Pro Fac Upp Upp Zhi Pro Fac Upp War Pro Res Qua Res Tes Frg Maximum Alert Level 5 | . . . 1 . 1 1 . . . . 1 . . . . . . . . . 1 . . . . 1 2 1 5 Low Security (%) 64 | 100 100 100 43 100 42 48 100 . 100 100 97 . . . . 100 . . . . 24 . . . 100 92 46 . 2 Level 1 27 | . . . 56 . 57 51 . . . . 2 . . . . . . . . . 75 . . . . 7 32 100 18 Level 2 . | . . . . . . . . . . . . . . . . . . . . . . . . . . . 20 . 5 Level 3 1 | . . . . . . . . . . . . . . . . . . . . . . . . . . . . . 12 Level 4 . | . . . . . . . . . . . . . . . . . . . . . . . . . . . . . 6 Level 5 5 | . . . . . . . . . . . . . . . . . . . . . . . . . . . . . 54 High Security . | . . . . . . . . . . . . . . . . . . . . . . . . . . . . . . Max Security . | . . . . . . . . . . . . . . . . . . . . . . . . . . . . . . Peak Influence 2207 | 5 187 97 391 149 330 380 97 . 37 2 204 . . . . 122 . . . . 386 . . . 94 222 432 321 2207 Initial 231 | . . 37 1 127 . 84 43 . . . . . . . . 16 . . . . 53 . . . 87 13 121 231 174 Average 248 | . 105 26 199 40 188 204 26 . 10 . 79 . . . . 31 . . . . 227 . . . 66 122 238 268 1370 Influence Increases 10467 | 10 553 286 1249 162 1081 913 286 . 254 2 477 . . . 147 315 30 . 15 155 549 . 45 170 48 363 381 220 2756 Destroy 0b10 Robot/C 4400 | . 360 180 660 100 700 460 40 . . . 80 . . . 100 . . . . 100 . . . 100 . . 80 . 1440 Destroy 0b10 Robot/NC 455 | 10 20 20 80 5 90 60 5 . 30 . 10 . . . . . . . 15 . 10 . . . 5 . 20 15 60 Destroy Leader 984 | . 76 40 208 10 198 164 . . 12 . 14 . . . 10 . . . . 10 4 . . 10 2 . 12 4 210 Allied During Kill 372 | . . 16 20 . . 96 24 . . . . . . . 37 . . . . . . . . . . . . . 179 Successful Hack 500 | . 37 . 46 . 41 16 7 . 99 . 77 . . . . 14 . . . . 18 . . . . 8 8 84 45 Select Force Hacks 210 | . . . . . . . 210 . . . . . . . . . . . . . . . . . . . . . . Disable Machine 600 | . 15 . 90 . 15 60 . . 15 . 45 . . . . 45 . . . . . . . . . 105 . 30 180 Destroy Structure 741 | . . . 55 17 22 12 . . 38 2 26 . . . . 76 . . . . 82 . . . 26 40 111 12 222 Partial Spotted 465 | . . . . . . . . . 15 . 75 . . . . 30 . . . . 60 . . . 15 90 . 30 150 Lose Combat Pursuer 1740 | . 45 30 90 30 15 45 . . 45 . 150 . . . . 150 30 . . 45 375 . 45 60 . 120 150 45 270 Influence Decreases 8269 | 10 457 377 925 491 880 1003 397 . 254 2 299 107 35 36 120 330 42 . 15 70 248 183 248 40 153 172 185 321 869 Entered New Map 1430 | . . 59 4 202 . 117 68 . . . . 67 15 36 . 11 5 . . . 32 143 203 . 43 12 95 181 137 Time Decay 5547 | 10 437 318 541 289 650 556 329 . 232 2 249 40 20 . 80 309 37 . 15 70 206 40 45 40 110 140 80 140 562 Lost Part 330 | . 20 . 20 . 80 10 . . . . 30 . . . . . . . . . 10 . . . . 20 10 . 130 Lost Ally 212 | . . . 60 . . 20 . . 22 . 20 . . . 40 10 . . . . . . . . . . . . 40 Purge Threat 750 | . . . 300 . 150 300 . . . . . . . . . . . . . . . . . . . . . . . Squads Dispatched 65 | . 4 . 6 . 4 3 . . 8 . 8 . . . . 10 . . . . 7 . . . 4 1 3 1 6 Investigation 25 | . 1 . 3 . . . . . 5 . 4 . . . . 2 . . . . 3 . . . 2 . 1 . 4 Extermination 13 | . . . . . . . . . 2 . 2 . . . . 3 . . . . 2 . . . 2 1 . 1 . Reinforcement 26 | . 3 . 3 . 4 2 . . 1 . 2 . . . . 5 . . . . 2 . . . . . 2 . 2 Assault . | . . . . . . . . . . . . . . . . . . . . . . . . . . . . . . Garrison 1 | . . . . . . 1 . . . . . . . . . . . . . . . . . . . . . . . Intercept . | . . . . . . . . . . . . . . . . . . . . . . . . . . . . . . Searches Triggered . | . . . . . . . . . . . . . . . . . . . . . . . . . . . . . . Construction Impeded 2 | . . . 1 . . . . . . . . . . . . . . . . . . . . . . . 1 . . Haulers Reinforced 1 | . . . . . . . . . 1 . . . . . . . . . . . . . . . . . . . . Active Scanning Responses . | . . . . . . . . . . . . . . . . . . . . . . . . . . . . . . Cargo Convoy Interrupts . | . . . . . . . . . . . . . . . . . . . . . . . . . . . . . . Stealth | -11 -10 -10 -9 -9 -8 -8 -8 -8 -6 -6 -6 -6 -6 -6 -5 -5 -5 -5 -5 -4 -4 -4 -4 -3 -3 -3 -2 -2 -2 --------- Run | Yrd Mat Min Mat Min Mat Sto Rec Scr Fac Was Fac Low Low Zio Pro Fac Upp Upp Zhi Pro Fac Upp War Pro Res Qua Res Tes Frg Distress Signals 29 | . 3 . 2 . 2 4 . . . . 1 . . . . 2 . . . . 2 . 1 . . 1 4 . 7 Communications Jammed 62 | . . . . . . . . . . . . . . . . . . . . . . . . . . 30 32 . . Distress Signals 60 | . . . . . . . . . . . . . . . . . . . . . . . . . . 28 32 . . Times Spotted 498 | . 37 9 53 7 51 34 3 . 6 6 21 . . . 6 18 2 . . 5 17 . 37 5 . 14 13 4 150 Peak Tracking Total 17 | . 6 2 6 3 6 5 1 . 3 6 7 . . . 5 9 2 . . 5 12 . 17 4 . 5 7 3 15 Tactical Retreats 56 | . 3 2 4 1 1 2 . . 1 . 5 . . . . 3 1 . . 1 7 . 2 3 . 6 2 1 11 Traps | -11 -10 -10 -9 -9 -8 -8 -8 -8 -6 -6 -6 -6 -6 -6 -5 -5 -5 -5 -5 -4 -4 -4 -4 -3 -3 -3 -2 -2 -2 ------- Run | Yrd Mat Min Mat Min Mat Sto Rec Scr Fac Was Fac Low Low Zio Pro Fac Upp Upp Zhi Pro Fac Upp War Pro Res Qua Res Tes Frg Traps Triggered 31 | . 3 . 8 . . 3 . . 2 . 4 . . . . 2 . . . . . . . . . 1 . 1 7 Indirectly . | . . . . . . . . . . . . . . . . . . . . . . . . . . . . . . Trap Hack Attempts . | . . . . . . . . . . . . . . . . . . . . . . . . . . . . . . Triggered . | . . . . . . . . . . . . . . . . . . . . . . . . . . . . . . Disarmed . | . . . . . . . . . . . . . . . . . . . . . . . . . . . . . . Reprogrammed . | . . . . . . . . . . . . . . . . . . . . . . . . . . . . . . Reused . | . . . . . . . . . . . . . . . . . . . . . . . . . . . . . . Traps Extracted . | . . . . . . . . . . . . . . . . . . . . . . . . . . . . . . Installed . | . . . . . . . . . . . . . . . . . . . . . . . . . . . . . . Triggered . | . . . . . . . . . . . . . . . . . . . . . . . . . . . . . . Most Traps Carried 1 | . . 1 . . . . . . . . . . . . . . . . . . . . . . . . . . . Machines | -11 -10 -10 -9 -9 -8 -8 -8 -8 -6 -6 -6 -6 -6 -6 -5 -5 -5 -5 -5 -4 -4 -4 -4 -3 -3 -3 -2 -2 -2 ---------- Run | Yrd Mat Min Mat Min Mat Sto Rec Scr Fac Was Fac Low Low Zio Pro Fac Upp Upp Zhi Pro Fac Upp War Pro Res Qua Res Tes Frg Machines Disabled 43 | . 1 . 6 . 1 4 . . 1 . 3 . . . . 3 . . . . . . 1 . . 7 . 2 14 Max in Single Turn 4 | . 1 . 2 . 1 1 . . 1 . 1 . . . . 1 . . . . . . 1 . . 1 . 1 4 Garrison Access 7 | . . . . . 1 1 . . 2 . 2 . . . . . . . . . . . . . . . . . 1 Machines Repaired . | . . . . . . . . . . . . . . . . . . . . . . . . . . . . . . Machines Dismantled 2 | . . . . . . 1 . . . . . . . . . . . . . . . . 1 . . . . . . Machines Sabotaged . | . . . . . . . . . . . . . . . . . . . . . . . . . . . . . . Overloaded Fab Kills . | . . . . . . . . . . . . . . . . . . . . . . . . . . . . . . Hacking | -11 -10 -10 -9 -9 -8 -8 -8 -8 -6 -6 -6 -6 -6 -6 -5 -5 -5 -5 -5 -4 -4 -4 -4 -3 -3 -3 -2 -2 -2 --------- Run | Yrd Mat Min Mat Min Mat Sto Rec Scr Fac Was Fac Low Low Zio Pro Fac Upp Upp Zhi Pro Fac Upp War Pro Res Qua Res Tes Frg Machines Accessed 168 | . 6 . 15 1 13 11 13 6 21 . 21 . . . . 13 1 . 4 . 10 . 4 . 3 7 3 6 10 Terminals 85 | . 4 . 9 . 7 7 6 . 10 . 9 . . . . 9 . . . . 7 . . . . 7 2 5 3 Fabricators 10 | . . . . . . . . . 3 . 3 . . . . 1 . . . . . . . . . . . . 3 Repair Stations 9 | . . . 2 . 2 2 . . 1 . . . . . . . . . . . . . . . 1 . . 1 . Recycling Units 36 | . 2 . 2 . 2 1 7 . 4 . 6 . . . . 3 . . . . 3 . . . 2 . 1 . 3 Scanalyzers 3 | . . . 2 . 1 . . . . . . . . . . . . . . . . . . . . . . . . Garrison Access 9 | . . . . . 1 1 . . 3 . 3 . . . . . . . . . . . . . . . . . 1 Total Hacks 433 | . 20 . 52 1 42 26 35 34 43 . 44 . . . . 27 1 . 17 . 21 . 11 . 3 12 6 16 22 Successful 249 | . 8 . 30 1 25 13 16 34 25 . 17 . . . . 5 1 . 17 . 15 . 11 . 2 5 4 12 8 Failed 183 | . 11 . 22 . 17 13 19 . 18 . 27 . . . . 22 . . . . 6 . . . 1 7 2 4 14 Catastrophic 18 | . 1 . 4 . 1 2 . . 1 . 3 . . . . 2 . . . . 1 . . . . 1 . . 2 Database Lockouts 1 | . 1 . . . . . . . . . . . . . . . . . . . . . . . . . . . . Manual 170 | . 6 . 17 . 24 6 11 . 19 . 16 . . 1 . 22 . . . . 11 . . . 2 10 4 5 16 Terminals 208 | . 14 . 28 . 29 15 16 . 21 . 18 . . . . 15 . . . . 17 . . . . 12 4 12 7 Fabricators 24 | . . . . . . . . . 7 . 9 . . . . 3 . . . . . . . . . . . . 5 Repair Stations 24 | . . . 5 . 5 7 . . 2 . . . . . . . . . . . . . . . 1 . . 4 . Recycling Units 89 | . 6 . 8 . 5 3 19 . 9 . 13 . . . . 9 . . . . 4 . . . 2 . 2 . 9 Scanalyzers 13 | . . . 11 . 2 . . . . . . . . . . . . . . . . . . . . . . . . Garrison Access 11 | . . . . . 1 1 . . 4 . 4 . . . . . . . . . . . . . . . . . 1 Terminal Hacks 131 | . 5 . 11 1 13 6 3 34 6 . 3 . . . . . 1 . 17 . 7 . 11 . . 2 2 7 2 Record 44 | . . . . . 1 . . 28 . . . . . . . . . . 5 . . . 10 . . . . . . Part Schematic 9 | . . . . . 1 . 2 . 1 . . . . . . . . . 4 . 1 . . . . . . . . Robot Analysis 13 | . 1 . 1 . 2 . . 5 . . . . . . . . . . 4 . . . . . . . . . . Prototype ID Bank 6 | . . . 1 . . . . . . . . . . . . . . . 4 . 1 . . . . . . . . Open Door 4 | . . . . 1 . 1 . . . . . . . . . . 1 . . . . . 1 . . . . . . Level Access Points 1 | . . . . . . . . . . . . . . . . . . . . . . . . . . . . . 1 Branch Access Points 7 | . 1 . 1 . 1 . . . 1 . 1 . . . . . . . . . 1 . . . . . 1 . . Terminal Index 2 | . . . 1 . 1 . . . . . . . . . . . . . . . . . . . . . . . . Repair Station Index 1 | . . . . . 1 . . . . . . . . . . . . . . . . . . . . . . . . Unreport Threat 5 | . . . 2 . 1 2 . . . . . . . . . . . . . . . . . . . . . . . Locate Traps 10 | . 2 . 2 . 1 1 . . 1 . . . . . . . . . . . 2 . . . . . . 1 . Maintenance Status 1 | . . . . . . . . . . . . . . . . . . . . . . . . . . . . 1 . Transport Status 1 | . . . . . 1 . . . . . . . . . . . . . . . . . . . . . . . . Recall Investigation 5 | . 1 . 1 . . . . . 2 . . . . . . . . . . . 1 . . . . . . . . Recall Extermination 1 | . . . . . . . . . . . . . . . . . . . . . . . . . . 1 . . . Hauler Manifests 8 | . . . 1 . 2 2 . . . . 1 . . . . . . . . . 1 . . . . . . 1 . Registered Components 5 | . . . 1 . 1 . 1 . 1 . 1 . . . . . . . . . . . . . . . . . . Zone Layout 7 | . . . . . . . . . . . . . . . . . . . . . . . . . . 1 1 4 1 Proto ID Catalog 1 | . . . . . . . . 1 . . . . . . . . . . . . . . . . . . . . . Fabricator Hacks 8 | . . . . . . . . . 3 . 4 . . . . 1 . . . . . . . . . . . . . Network Status 2 | . . . . . . . . . 1 . . . . . . 1 . . . . . . . . . . . . . Load Schematic 2 | . . . . . . . . . . . 2 . . . . . . . . . . . . . . . . . . Build 4 | . . . . . . . . . 2 . 2 . . . . . . . . . . . . . . . . . . Repair Station Hacks 18 | . . . 4 . 3 5 . . 2 . . . . . . . . . . . . . . . . . . 4 . Scan Component 10 | . . . 2 . 2 3 . . 1 . . . . . . . . . . . . . . . . . . 2 . Repair 8 | . . . 2 . 1 2 . . 1 . . . . . . . . . . . . . . . . . . 2 . Recycling Unit Hacks 14 | . 2 . 2 . 1 . 4 . 2 . 2 . . . . . . . . . 1 . . . . . . . . Retrieve Components 14 | . 2 . 2 . 1 . 4 . 2 . 2 . . . . . . . . . 1 . . . . . . . . Scanalyzer 12 | . . . 10 . 2 . . . . . . . . . . . . . . . . . . . . . . . . Insert Component 6 | . . . 5 . 1 . . . . . . . . . . . . . . . . . . . . . . . . Analyze 6 | . . . 5 . 1 . . . . . . . . . . . . . . . . . . . . . . . . Garrison Access Hacks 7 | . . . . . 1 1 . . 2 . 2 . . . . . . . . . . . . . . . . . 1 Seal Access 7 | . . . . . 1 1 . . 2 . 2 . . . . . . . . . . . . . . . . . 1 Unauthorized Hacks 59 | . 1 . 3 . 5 1 9 . 10 . 6 . . . . 4 . . . . 7 . . . 2 3 2 1 5 Terminals 27 | . 1 . 2 . 4 1 2 . 3 . 3 . . . . 2 . . . . 4 . . . . 3 1 1 . Track 3 | . . . . . . . . . . . . . . . . 1 . . . . 2 . . . . . . . . Assimilate 5 | . . . . . . . . . 1 . 2 . . . . 1 . . . . . . . . . 1 . . . Botnet 18 | . 1 . 2 . 3 1 2 . 2 . 1 . . . . . . . . . 2 . . . . 2 1 1 . Skim 1 | . . . . . 1 . . . . . . . . . . . . . . . . . . . . . . . . Fabricators 6 | . . . . . . . . . 3 . 1 . . . . . . . . . . . . . . . . . 2 Prioritize 3 | . . . . . . . . . 2 . 1 . . . . . . . . . . . . . . . . . . Liberate 3 | . . . . . . . . . 1 . . . . . . . . . . . . . . . . . . . 2 Repair Stations . | . . . . . . . . . . . . . . . . . . . . . . . . . . . . . . Recycling Units 26 | . . . 1 . 1 . 7 . 4 . 2 . . . . 2 . . . . 3 . . . 2 . 1 . 3 Mask 2 | . . . 1 . 1 . . . . . . . . . . . . . . . . . . . . . . . . Tunnel 7 | . . . . . . . 7 . . . . . . . . . . . . . . . . . . . . . . Fedlink 15 | . . . . . . . . . 4 . 2 . . . . 2 . . . . 3 . . . 2 . 1 . 1 Scraphulk 2 | . . . . . . . . . . . . . . . . . . . . . . . . . . . . . 2 Scanalyzers . | . . . . . . . . . . . . . . . . . . . . . . . . . . . . . . Garrison Access . | . . . . . . . . . . . . . . . . . . . . . . . . . . . . . . Data Cores Recovered 3 | . . . . . . 2 . . . . . . . . . . . . . . . . . . . . . . 1 Used . | . . . . . . . . . . . . . . . . . . . . . . . . . . . . . . Hacking Detections 112 | . 5 . 13 . 11 7 9 . 14 . 15 . . . . 12 . . . . 6 . . . 1 5 1 5 8 Full Trace Events 2 | . . . . . . . . . . . 2 . . . . . . . . . . . . . . . . . . Feedback Events . | . . . . . . . . . . . . . . . . . . . . . . . . . . . . . . Feedback Blocked . | . . . . . . . . . . . . . . . . . . . . . . . . . . . . . . Robot Schematics Acquired 3 | . . . . . . . . . . . . . . 3 . . . . . . . . . . . . . . . Robots Built . | . . . . . . . . . . . . . . . . . . . . . . . . . . . . . . Authchips . | . . . . . . . . . . . . . . . . . . . . . . . . . . . . . . Time . | . . . . . . . . . . . . . . . . . . . . . . . . . . . . . . Total Robot Build Rating . | . . . . . . . . . . . . . . . . . . . . . . . . . . . . . . Part Schematics Acquired 29 | . . . 5 . 1 . 2 . 1 . . . . 15 . . . . 4 . 1 . . . . . . . . Parts Built 5 | . . . . . . . . . 3 . 2 . . . . . . . . . . . . . . . . . . Authchips . | . . . . . . . . . . . . . . . . . . . . . . . . . . . . . . Time 233 | . . . . . . . . . 122 . 111 . . . . . . . . . . . . . . . . . . Total Part Build Rating 30 | . . . . . . . . . 22 . 8 . . . . . . . . . . . . . . . . . . Parts Repaired 8 | . . . 2 . 1 2 . . 1 . . . . . . . . . . . . . . . . . . 2 . Time 279 | . . . 52 . 38 76 . . 25 . . . . . . . . . . . . . . . . . . 88 . Parts Recycled . | . . . . . . . . . . . . . . . . . . . . . . . . . . . . . . Recycled Matter . | . . . . . . . . . . . . . . . . . . . . . . . . . . . . . . Retrieved Matter . | . . . . . . . . . . . . . . . . . . . . . . . . . . . . . . Retrieved Components 41 | . 11 . 11 . . . 14 . 1 . 4 . . . . . . . . . . . . . . . . . . Parts Scanalyzed 6 | . . . 5 . 1 . . . . . . . . . . . . . . . . . . . . . . . . Part Schematics Acquired 6 | . . . 5 . 1 . . . . . . . . . . . . . . . . . . . . . . . . Parts Damaged . | . . . . . . . . . . . . . . . . . . . . . . . . . . . . . . Bothacking | -11 -10 -10 -9 -9 -8 -8 -8 -8 -6 -6 -6 -6 -6 -6 -5 -5 -5 -5 -5 -4 -4 -4 -4 -3 -3 -3 -2 -2 -2 ------------ Run | Yrd Mat Min Mat Min Mat Sto Rec Scr Fac Was Fac Low Low Zio Pro Fac Upp Upp Zhi Pro Fac Upp War Pro Res Qua Res Tes Frg Used RIF Installer . | . . . . . . . . . . . . . . . . . . . . . . . . . . . . . . Robots Hacked 1 | . . . . . . . . . 1 . . . . . . . . . . . . . . . . . . . . Non-combat 1 | . . . . . . . . . 1 . . . . . . . . . . . . . . . . . . . . Combat . | . . . . . . . . . . . . . . . . . . . . . . . . . . . . . . Robot Hacks Applied 1 | . . . . . . . . . 1 . . . . . . . . . . . . . . . . . . . . find_chute 1 | . . . . . . . . . 1 . . . . . . . . . . . . . . . . . . . . Relay Couplers Released . | . . . . . . . . . . . . . . . . . . . . . . . . . . . . . . Fabnet Peak Effective % . | . . . . . . . . . . . . . . . . . . . . . . . . . . . . . . Robots Rewired . | . . . . . . . . . . . . . . . . . . . . . . . . . . . . . . Allies Hacked . | . . . . . . . . . . . . . . . . . . . . . . . . . . . . . . Hacks Repelled . | . . . . . . . . . . . . . . . . . . . . . . . . . . . . . . Allies | -11 -10 -10 -9 -9 -8 -8 -8 -8 -6 -6 -6 -6 -6 -6 -5 -5 -5 -5 -5 -4 -4 -4 -4 -3 -3 -3 -2 -2 -2 -------- Run | Yrd Mat Min Mat Min Mat Sto Rec Scr Fac Was Fac Low Low Zio Pro Fac Upp Upp Zhi Pro Fac Upp War Pro Res Qua Res Tes Frg Total Allies 22 | . . 3 . . . 10 . . 1 . 2 . . 2 . 1 . . . . . . . . . 1 . . 2 Largest Group 10 | . . 3 3 . . 10 8 6 3 . 2 . . 2 2 1 . . . . . . . . . 1 . . 2 Highest-Rated Group 278 | . . 40 40 . . 173 141 109 61 . 20 . . 192 192 26 . . . . . . . . . 45 . . 278 Highest-Rated Ally 139 | . . 16 16 . . 29 29 29 29 . 10 . . 96 96 26 . . . . . . . . . 45 . . 139 Total Orders 1 | . . . . . . . . . 1 . . . . . . . . . . . . . . . . . . . . STAY 1 | . . . . . . . . . 1 . . . . . . . . . . . . . . . . . . . . Ally Attacks 129 | . . 18 23 . . 24 5 . 5 . . . . . 11 . . . . . . . . . . . . . 43 Total Damage 3818 | . . 216 169 . . 293 62 . 51 . . . . . 381 . . . . . . . . . . . . . 2646 Kills 37 | . . 4 5 . . 4 2 . . . . . . . 5 . . . . . . . . . . . . . 17 Allies Corrupted . | . . . . . . . . . . . . . . . . . . . . . . . . . . . . . . Allies Melted 4 | . . . . . . . 1 . . . . . . . . . . . . . . . . . . . . . 3 Intel | -11 -10 -10 -9 -9 -8 -8 -8 -8 -6 -6 -6 -6 -6 -6 -5 -5 -5 -5 -5 -4 -4 -4 -4 -3 -3 -3 -2 -2 -2 ------- Run | Yrd Mat Min Mat Min Mat Sto Rec Scr Fac Was Fac Low Low Zio Pro Fac Upp Upp Zhi Pro Fac Upp War Pro Res Qua Res Tes Frg Active Infowar (turns) 8215 | 21 392 . . . . . . . 734 43 862 84 55 434 163 831 124 256 109 220 429 88 542 207 227 265 163 291 1675 Optics 1364 | . . . . . . . . . . . . . . . . . . . . . . . . . . . . . 1364 Sensors 6040 | . . . . . . . . . 734 43 747 84 55 434 149 831 124 256 107 210 426 88 462 183 227 212 141 279 248 Structural 5910 | . . . . . . . . . 731 43 862 84 55 432 163 831 124 256 109 220 429 88 542 207 227 73 . 126 308 Seismic 413 | 21 392 . . . . . . . . . . . . . . . . . . . . . . . . . . . . Jamming 832 | . . . . . . . . . . . . . . . . . . . . . . . . . 37 159 163 195 278 Robot Analysis Total 13 | . 1 . 1 . 2 . . 5 . . . . . . . . . . 4 . . . . . . . . . . Derelict Logs Recovered 11 | . . 1 . 2 . . . . . . . . 2 . 1 . . 2 . 1 . 2 . . . . . . . Drone Launches . | . . . . . . . . . . . . . . . . . . . . . . . . . . . . . . Drone Recoveries . | . . . . . . . . . . . . . . . . . . . . . . . . . . . . . . Exploration | -11 -10 -10 -9 -9 -8 -8 -8 -8 -6 -6 -6 -6 -6 -6 -5 -5 -5 -5 -5 -4 -4 -4 -4 -3 -3 -3 -2 -2 -2 ------------- Run | Yrd Mat Min Mat Min Mat Sto Rec Scr Fac Was Fac Low Low Zio Pro Fac Upp Upp Zhi Pro Fac Upp War Pro Res Qua Res Tes Frg Turns Passed 21496 | 95 1337 1096 2193 1220 2646 1631 1078 2362 744 43 862 84 55 434 163 831 124 256 109 220 429 88 542 207 227 292 163 291 1674 Spaces Moved 25104 | 51 721 601 1045 729 1297 711 636 1406 1967 127 2074 312 183 914 255 1749 356 688 225 414 1457 368 1096 521 662 632 336 503 3068 Core 12 | 12 . . . . . . . . . . . . . . . . . . . . . . . . . . . . . Treads 6641 | . 216 601 1045 729 1297 711 636 1406 . . . . . . . . . . . . . . . . . . . . . Legs 544 | 39 505 . . . . . . . . . . . . . . . . . . . . . . . . . . . . Wheels . | . . . . . . . . . . . . . . . . . . . . . . . . . . . . . . Hover . | . . . . . . . . . . . . . . . . . . . . . . . . . . . . . . Flight 17907 | . . . . . . . . . 1967 127 2074 312 183 914 255 1749 356 688 225 414 1457 368 1096 521 662 632 336 503 3068 Fastest Speed 5 | 50 120 160 160 160 160 161 161 161 23 25 26 26 26 26 26 15 5 5 23 5 5 5 5 5 17 12 7 7 7 Average Speed 61 | 130 133 160 160 160 162 164 161 166 24 26 27 26 26 26 26 23 22 22 32 22 16 16 16 16 19 20 18 18 24 Slowest Speed 305 | 200 240 160 240 160 245 305 250 170 25 29 102 26 26 97 26 94 23 23 91 23 17 17 17 84 21 21 89 21 89 Overloaded Moves 482 | . . . . . . . . . . . . . . . . 35 13 18 . 2 35 14 26 33 . 44 29 33 200 Propulsion Burnouts . | . . . . . . . . . . . . . . . . . . . . . . . . . . . . . . Robots Hopped 96 | . . . . . . . . . 12 6 17 . . . . 4 . . . . 9 . 4 1 1 4 4 2 32 Potential Cave-ins 25 | . . . . . . . . . . . 4 . . . . . . . . . . . 2 4 4 . . . 11 Cave-ins Triggered . | . . . . . . . . . . . . . . . . . . . . . . . . . . . . . . Exploration Rate (%) 65 | 4 97 99 97 99 90 97 94 91 52 77 59 47 45 83 38 55 54 74 59 64 45 67 83 65 16 77 14 49 64 Regions Visited 29 Branch Regions 19 Pre-discovered Areas 15 | . . 1 . . . . 7 . 1 . . . . . . . . . 3 1 . . 2 . . . . . . Known Exits Taken 23 | . 1 . 1 1 1 1 . . . . 1 1 1 1 1 1 1 1 1 1 1 1 1 1 1 1 1 1 . Unknown Exits Taken 4 | 1 . 1 . . . . 1 1 . . . . . . . . . . . . . . . . . . . . . Scrap Searched 21 | . . 1 . 2 . . . 2 . . . 1 . 5 1 . 2 2 . 1 . 3 . 1 . . . . . Spaces Dug 284 | . . . . . 4 10 . . 38 2 42 1 . . 4 38 3 . . 8 41 6 10 16 15 21 6 4 15 Terrain Destroyed 605 | . . . 56 24 18 10 . . 38 2 44 1 . . 4 38 3 . . 26 41 6 64 84 15 21 35 4 71 Melee 195 | . . . . . 4 . . . 31 1 15 1 . . 3 30 2 . . 5 38 4 10 11 11 16 6 4 3 Projectile 80 | . . . . . . . . . 7 1 29 . . . 1 8 1 . . 3 3 2 . 5 4 5 . . 11 AOE 273 | . . . 56 24 14 10 . . . . . . . . . . . . . 18 . . 54 68 . . 29 . . Terrain Rammed . | . . . . . . . . . . . . . . . . . . . . . . . . . . . . . . Walls Destroyed . | . . . . . . . . . . . . . . . . . . . . . . . . . . . . . . Machines Disabled . | . . . . . . . . . . . . . . . . . . . . . . . . . . . . . . Actions | -11 -10 -10 -9 -9 -8 -8 -8 -8 -6 -6 -6 -6 -6 -6 -5 -5 -5 -5 -5 -4 -4 -4 -4 -3 -3 -3 -2 -2 -2 --------- Run | Yrd Mat Min Mat Min Mat Sto Rec Scr Fac Was Fac Low Low Zio Pro Fac Upp Upp Zhi Pro Fac Upp War Pro Res Qua Res Tes Frg Total 29449 | 70 947 679 1413 766 1634 1025 684 1423 2141 127 2260 312 189 1107 340 2111 393 788 249 525 1556 386 1422 607 724 731 410 675 3755 Wait 2546 | 4 100 28 215 6 130 180 30 2 58 . 102 . 7 182 75 290 31 101 10 90 34 9 291 55 27 31 42 141 275 Move 24904 | 50 720 600 1044 728 1296 710 635 1405 1945 117 2040 311 182 913 254 1740 355 687 224 413 1438 367 1089 518 659 623 328 498 3015 Hop 76 | . . . . . . . . . 10 3 16 . . . . 4 . . . . 9 . 2 1 1 4 3 2 21 Pick Up 139 | 4 15 6 24 6 11 5 2 4 9 1 3 . . 1 . 6 . . 1 . 5 1 3 . 1 5 2 3 21 Fast Attach 172 | 7 7 3 15 . 22 14 4 2 8 . 13 . . 2 . 3 . . 4 . 2 . 3 1 3 11 2 6 40 Attach 103 | . 2 . 4 1 5 . . . 15 2 5 . . 1 1 8 1 . . 4 6 1 3 . 4 5 7 4 24 Detach 70 | . . . . . 1 . . . 7 1 5 . . 2 1 6 1 . . 4 3 1 . . 3 5 6 4 20 Swap 103 | 1 11 . 10 8 13 13 . 4 5 . 1 . . 2 2 1 . . . 4 1 1 4 9 . 1 3 . 9 Drop 225 | 1 10 7 24 5 22 11 6 6 23 1 8 . . 3 . 7 . . 4 . 5 . 5 1 3 12 3 6 52 Fire 592 | 3 80 31 75 10 123 70 3 . 8 1 31 . . . 1 8 1 . . 4 3 2 4 10 4 6 4 . 110 Melee 314 | . . . . . 6 6 . . 53 1 36 1 . 1 6 38 4 . 6 6 50 4 10 12 19 28 10 11 6 Ram . | . . . . . . . . . . . . . . . . . . . . . . . . . . . . . . Kick 2 | . 2 . . . . . . . . . . . . . . . . . . . . . . . . . . . . Crush 22 | . . 4 2 2 5 5 4 . . . . . . . . . . . . . . . . . . . . . . Escape Stasis 92 | . . . . . . . . . . . . . . . . . . . . . . . . . . . . . 92 Rewire 2 | . . . . . . 2 . . . . . . . . . . . . . . . . . . . . . . . Trap . | . . . . . . . . . . . . . . . . . . . . . . . . . . . . . . Miscellaneous 87 | . . . . . . 9 . . . . . . . . . . . . . . . . 8 . . . . . 70 Route ------- -11/Scrapyard -10/Materials (discovered 5 exits: *Mat x3 / *Min x2) -10/Mines (discovered 4 exits: *Mat x2 / [*Exi] / [*Sub]) -9/Materials (discovered 5 exits: *Mat x3 / *Min x2) -9/Mines (discovered 2 exits: *Mat x2) -8/Materials (discovered 5 exits: [*Fac x3] / *Sto x2) -8/Storage (discovered 2 exits: [*Fac] / *Rec) -8/Recycling (discovered 2 exits: *Fac / *Scr) -8/Scraptown (discovered 2 exits: *Fac x2) -6/Factory (discovered 5 exits: *Fac / *Low x2 / *Ext x2) -6/Waste -6/Factory (discovered 5 exits: *Fac / *Low x2 / Ext x2) -6/Lower Caves -6/Lower Caves (discovered 2 exits: Fac / *Zio) -6/Zion -5/Proximity Caves -5/Factory (discovered 3 exits: *Fac x2 / *Upp) -5/Upper Caves -5/Upper Caves -5/Zhirov -4/Proximity Caves -4/Factory (discovered 2 exits: *Upp x2) -4/Upper Caves (discovered 2 exits: *Upp / *War) -4/Warlord -3/Proximity Caves -3/Research (discovered 3 exits: Res / Arm / *Qua) -3/Quarantine -2/Research (discovered 2 exits: *Tes x2) -2/Testing (discovered 3 exits: *Acc / [*Sec] / *Frg) -2/Protoforge 0bPrime History --------- Turn | Location | Event 20 | -11/Scrapyard | Discovered new exit (range 15) 96 | -11/Scrapyard | Entered Materials 221 | -10/Materials | Discovered new exit (range 12) 330 | -10/Materials | Build established: Mutant 481 | -10/Materials | Discovered new exit (range 6) 583 | -10/Materials | Discovered new exit (range 8) 718 | -10/Materials | Discovered new exit (range 16) 835 | -10/Materials | Identified exit to Mines 865 | -10/Materials | Discovered new exit (range 8) 1285 | -10/Materials | Central database locked down 1433 | -10/Materials | Entered Mines 1608 | -10/Mines | Discovered new exit (range 9) 1742 | -10/Mines | Learned location of 1 exit from Materials 1760 | -10/Mines | Found a hidden stash of uninstalled traps 1763 | -10/Mines | Build established: Scavenger-Mutant 1783 | -10/Mines | Discovered new exit (range 9) 1786 | -10/Mines | Learned location of Storage (-8) 1812 | -10/Mines | Core integrity fell below 50% 2059 | -10/Mines | Assisted by bots powering up and referring to "LRC-V3" 2128 | -10/Mines | Discovered new exit (range 13) 2279 | -10/Mines | A weapon hastily lodged in a ceiling crevice suddenly fell to the ground 2350 | -10/Mines | Received a Rocket Launcher from a helpful Derelict 2380 | -10/Mines | Deemed a non-threat by the Exiles lab entrance 2380 | -10/Mines | Discovered new exit (range 5) 2529 | -10/Mines | Entered Materials 2529 | -9/Materials | Accompanied by 3 allies 2529 | -9/Materials | Evolved 2 slots: Propulsion x1, Utility x1 2530 | -9/Materials | Identified exit to Materials 2596 | -9/Materials | Repaired Lgt. Treads 2643 | -9/Materials | Repaired Lgt. Treads 2848 | -9/Materials | Discovered new exit (range 14) 2912 | -9/Materials | Lost 3 allies 2998 | -9/Materials | Destroyed 8 combat bots 3015 | -9/Materials | Build established: Mutant 3128 | -9/Materials | Discovered exit to Materials (range 15) 3455 | -9/Materials | Build established: Scavenger-Mutant 3633 | -9/Materials | Identified exit to Mines 4554 | -9/Materials | Discovered exit to Materials (range 5) 4687 | -9/Materials | Build established: Mutant 4722 | -9/Materials | Entered Mines 4804 | -9/Mines | Learned Materials security intel 5046 | -9/Mines | Met a Derelict who couldn't figure out how to use a Trap Extractor 5473 | -9/Mines | Discovered exit to Materials (range 5) 5657 | -9/Mines | Discovered exit to Materials (range 7) 5856 | -9/Mines | YI-UF0 nonchalantly dropped a Grenade Launcher on the ground 5869 | -9/Mines | Destroyed YI-UF0 5875 | -9/Mines | Found Corrupted Prototype Storage 5883 | -9/Mines | Found Corrupted Prototype Launcher 5884 | -9/Mines | Identified YI-UF0's Doublenader 5936 | -9/Mines | Identified YI-UF0's Bottomless Matter Pit 5937 | -9/Mines | System corruption reached 10% 5942 | -9/Mines | Entered Materials 5942 | -8/Materials | Evolved 2 slots: Utility x2 5987 | -8/Materials | Identified exit to Storage 6250 | -8/Materials | Destroyed 8 combat bots 6482 | -8/Materials | Discovered new exit (range 8) 6819 | -8/Materials | Discovered new exit (range 10) 7074 | -8/Materials | Lost 3 parts (2u1w) 7426 | -8/Materials | Build established: Scavenger-Mutant 7669 | -8/Materials | Core integrity fell below 50% 7738 | -8/Materials | Repaired Arm. Treads 7747 | -8/Materials | Discovered new exit (range 3) 8516 | -8/Materials | Build established: Mutant 8588 | -8/Materials | Entered Storage 8589 | -8/Storage | Identified exit to Recycling 8657 | -8/Storage | Repaired Hcp. Storage Unit 9142 | -8/Storage | Garrison activated, responded to threat 9189 | -8/Storage | Destroyed 8 combat bots 9267 | -8/Storage | Assisted by bots powering up and referring to "LRC-V3" 9582 | -8/Storage | Build established: Commander-Mutant 9637 | -8/Storage | Met 01-MTF 9686 | -8/Storage | Discovered new exit (range 16) 10055 | -8/Storage | Repaired Adv. Heat Sink 10219 | -8/Storage | Entered Recycling 10219 | -8/Recycling | Accompanied by 9 allies (01-MTF) 10604 | -8/Recycling | Discovered new exit (range 5) 11182 | -8/Recycling | Scanned before Scraplab entrance 11257 | -8/Recycling | Lost 3 allies 11268 | -8/Recycling | Entered Scraplab 11281 | -8/Recycling | Discovered new exit (range 2) 11297 | -8/Recycling | Entered Scraptown 11297 | -8/Scraptown | Accompanied by 6 allies 11297 | -8/Scraptown | System corruption cleaned by C-Scrubber 11623 | -8/Scraptown | Discovered new exit (range 5) 11679 | -8/Scraptown | Visited Observation Area 11753 | -8/Scraptown | Visited Awakened 12091 | -8/Scraptown | Visited Junk Repository 12161 | -8/Scraptown | Visited TADAMA 12272 | -8/Scraptown | Visited Assassins FH 12282 | -8/Scraptown | Visited Supply Room 12353 | -8/Scraptown | Visited SPCMW 12411 | -8/Scraptown | Visited UFD Registry 12440 | -8/Scraptown | Registered with UFD as "Nanopod" 12498 | -8/Scraptown | Visited Science Guys 12557 | -8/Scraptown | Visited Junk Repository 12623 | -8/Scraptown | Visited Abandonware Association 12650 | -8/Scraptown | Learned abandonware demo "POISON.EXE" 12789 | -8/Scraptown | Discovered new exit (range 5) 12845 | -8/Scraptown | Visited Modified Component R&D 12908 | -8/Scraptown | Visited Analyses Database 12947 | -8/Scraptown | Visited Derelict Rescue Squad 12990 | -8/Scraptown | Visited Scrap Suit Storage 13039 | -8/Scraptown | Visited Curators Association 13097 | -8/Scraptown | Visited A0-MCA Data Center 13111 | -8/Scraptown | Given an A rating by A0-MCA 13114 | -8/Scraptown | Found A0-MCA's Component Scanner 13148 | -8/Scraptown | Visited Botcube Research 13265 | -8/Scraptown | Found DRS Beacon 13547 | -8/Scraptown | Met Optimus 13547 | -8/Scraptown | Accepted into 0bPrime 13659 | -8/Scraptown | Entered Factory 13659 | -6/Factory | Accompanied by 3 allies 13659 | -6/Factory | Evolved 4 slots: Propulsion x2, Utility x2 13774 | -6/Factory | Identified exit to Lower Caves 13774 | -6/Factory | Identified exit to Extension 13837 | -6/Factory | Fabricated Matter Neutralizer (x2) 13852 | -6/Factory | Loaded intel: 8 recycling unit locations 13935 | -6/Factory | Learned location of Protoforge (-2) 13972 | -6/Factory | Build established: Scout 14026 | -6/Factory | Discovered new exit (range 15) 14030 | -6/Factory | Identified exit to Factory 14247 | -6/Factory | Fabricated Gamma Bomb Array? 14272 | -6/Factory | Repaired Nuclear Pulse Thruster 14403 | -6/Factory | Manually triggered Chute Trap 14403 | -6/Factory | Sucked down chute 14403 | -6/Factory | Entered Waste 14406 | -6/Waste | Spotted C-40 Crusher 14406 | -6/Waste | Spotted C-40 Crusher 14419 | -6/Waste | Spotted C-40 Crusher 14425 | -6/Waste | Spotted C-40 Crusher 14427 | -6/Waste | Crushed by Compactor (1 part destroyed, 2 dropped) 14433 | -6/Waste | Spotted C-40 Crusher 14436 | -6/Waste | Spotted C-40 Crusher 14439 | -6/Waste | Discovered new exit (range 11) 14443 | -6/Waste | Found Fusion Bomb Launcher 14445 | -6/Waste | Identified exit to Factory 14446 | -6/Waste | Entered Factory 14904 | -6/Factory | Fabricated Cld. VTOL Module (x1) 14923 | -6/Factory | Lost 3 parts (1n1u1w) 14963 | -6/Factory | Discovered exit to Factory (range 14) 15134 | -6/Factory | Fabricated Cld. VTOL Module (x1) 15220 | -6/Factory | Loaded intel: 8 recycling unit locations 15308 | -6/Factory | Entered Lower Caves 15377 | -6/Lower Caves | Discovered new exit (range 7) 15378 | -6/Lower Caves | Identified exit to Lower Caves 15392 | -6/Lower Caves | Entered another Lower Caves area 15434 | -6/Lower Caves | Encountered a Warlord checkpoint 15443 | -6/Lower Caves | Learned Factory terminal intel 15444 | -6/Lower Caves | Discovered new exit (range 13) 15447 | -6/Lower Caves | Identified exit to Zion 15447 | -6/Lower Caves | Entered Zion 15456 | -6/Zion | System corruption cleaned by Quarantine Array 15524 | -6/Zion | Given A8's code to call for help 15564 | -6/Zion | Turned away by Imprinter 15576 | -6/Zion | Found CR-A16's Pointy Stick 15649 | -6/Zion | Enhanced Grunt warped into view, answering call for help 15657 | -6/Zion | Enhanced Grunt warped into view, answering call for help 15831 | -6/Zion | Visited the Megawrench Repair Shop 15834 | -6/Zion | Megawrench repaired 7 parts 15854 | -6/Zion | Discovered new exit (range 12) 15857 | -6/Zion | Identified exit to Proximity Caves 15881 | -6/Zion | Entered Proximity Caves 15881 | -5/Proximity Caves | Accompanied by 2 allies 15922 | -5/Proximity Caves | Spotted B-75 Beast 16037 | -5/Proximity Caves | Attracted the attention of an 0b10 checkpoint 16038 | -5/Proximity Caves | Discovered exit to Factory (range 13) 16044 | -5/Proximity Caves | Entered Factory 16044 | -5/Factory | Evolved 2 slots: Propulsion x1, Utility x1 16045 | -5/Factory | Loaded intel: 26 terminal locations 16366 | -5/Factory | Discovered new exit (range 5) 16367 | -5/Factory | Identified exit to Factory 16580 | -5/Factory | Discovered new exit (range 14) 16583 | -5/Factory | Identified exit to Upper Caves 16593 | -5/Factory | Discovered exit to Factory (range 14) 16594 | -5/Factory | Loaded intel: 8 recycling unit locations 16875 | -5/Factory | Entered Upper Caves 16979 | -5/Upper Caves | Discovered new exit (range 16) 16982 | -5/Upper Caves | Identified exit to Upper Caves 16999 | -5/Upper Caves | Entered another Upper Caves area 17061 | -5/Upper Caves | Learned Factory non-interactive machine intel 17123 | -5/Upper Caves | Learned Factory terminal intel 17181 | -5/Upper Caves | Encountered a Warlord checkpoint 17209 | -5/Upper Caves | Spotted B-75 Beast 17252 | -5/Upper Caves | Discovered new exit (range 12) 17255 | -5/Upper Caves | Identified exit to Zhirov 17255 | -5/Upper Caves | Entered Zhirov 17255 | -5/Zhirov | Discovered new exit (range 3) 17260 | -5/Zhirov | Met Zhirov 17264 | -5/Zhirov | Learned location of Quarantine (-3) 17264 | -5/Zhirov | Learned location of Testing (-2) 17264 | -5/Zhirov | Learned location of Command (-1) 17266 | -5/Zhirov | Zhirov requested help retrieving the SGEMP Prototype 17270 | -5/Zhirov | Found Alien Artifact 17270 | -5/Zhirov | Identified Integrated Dissipator 17270 | -5/Zhirov | Installed Integrated Dissipator, increased core heat dissipation (+20) 17354 | -5/Zhirov | Identified exit to Proximity Caves 17364 | -5/Zhirov | Entered Proximity Caves 17574 | -4/Proximity Caves | Discovered exit to Factory (range 10) 17575 | -4/Proximity Caves | Learned location of Armory (-3) 17584 | -4/Proximity Caves | Entered Factory 17584 | -4/Factory | Evolved 2 slots: Power x1, Propulsion x1 17585 | -4/Factory | Loaded intel: 233 non-interactive machine locations 17586 | -4/Factory | Loaded intel: 26 terminal locations 17697 | -4/Factory | Loaded intel: 7 recycling unit locations 17700 | -4/Factory | Discovered new exit (range 16) 17705 | -4/Factory | Identified exit to Upper Caves 17801 | -4/Factory | Found Exp. System Shield 18013 | -4/Factory | Entered Upper Caves 18059 | -4/Upper Caves | Encountered a Warlord checkpoint 18075 | -4/Upper Caves | Learned 12 Research zone layouts 18081 | -4/Upper Caves | Learned location of 2 exits from Research 18092 | -4/Upper Caves | Discovered new exit (range 16) 18094 | -4/Upper Caves | Identified exit to Upper Caves 18100 | -4/Upper Caves | A Derelict revealed a hidden shortcut to "reach the base" 18101 | -4/Upper Caves | Identified exit to Warlord 18101 | -4/Upper Caves | Entered Warlord 18114 | -4/Warlord | Learned Quarantine security intel 18114 | -4/Warlord | Learned Factory garrison access intel 18114 | -4/Warlord | Learned Research fabricator intel 18114 | -4/Warlord | Learned Research garrison access intel 18114 | -4/Warlord | Learned 4 Research zone layouts 18114 | -4/Warlord | Learned 4 Access zone layouts 18218 | -4/Warlord | Visited the Vortex Lab 18219 | -4/Warlord | Warlord's base attacked by MAIN.C 18219 | -4/Warlord | Found Vortex Lance 18231 | -4/Warlord | Rebuked by Warlord 18490 | -4/Warlord | Build established: Hacker-Scout 18558 | -4/Warlord | Warlord forces counterattacked 18625 | -4/Warlord | Spotted Executioner 18629 | -4/Warlord | Spotted Striker 18643 | -4/Warlord | Discovered new exit (range 8) 18643 | -4/Warlord | Spotted Striker 18643 | -4/Warlord | Spotted Executioner 18643 | -4/Warlord | Identified exit to Proximity Caves 18643 | -4/Warlord | Entered Proximity Caves 18674 | -3/Proximity Caves | Lost 10 allies 18848 | -3/Proximity Caves | Discovered new exit (range 15) 18850 | -3/Proximity Caves | Identified exit to Research 18850 | -3/Proximity Caves | Entered Research 18850 | -3/Research | Evolved 2 slots: Utility x2 18851 | -3/Research | Identified exit to Armory 18851 | -3/Research | Identified exit to Quarantine 18852 | -3/Research | Identified exit to Research 18853 | -3/Research | Loaded intel: 4 fabricator locations 18854 | -3/Research | Loaded intel: 4 garrison access locations 18953 | -3/Research | Spotted B-86 Titan 18958 | -3/Research | Loaded intel: 5 recycling unit locations 18963 | -3/Research | Spotted B-86 Titan 19077 | -3/Research | Entered Quarantine 19086 | -3/Quarantine | Found Alien Artifact 19086 | -3/Quarantine | Identified Phase Redirector 19093 | -3/Quarantine | Cryocooling Duct disabled 19106 | -3/Quarantine | Found Alien Artifact 19106 | -3/Quarantine | Identified Core Reset Matrix 19106 | -3/Quarantine | Used Core Reset Matrix 19108 | -3/Quarantine | Ambient heat levels rising (+20) 19108 | -3/Quarantine | Non-combat units ordered to evacuate 19110 | -3/Quarantine | Detected hypermatrix surge 19110 | -3/Quarantine | Sensed 17 artifacts in vicinity 19131 | -3/Quarantine | Found Sigix Broadsword 19229 | -3/Quarantine | Found Dimensional Node Initializer 19232 | -3/Quarantine | Found Transdimensional Reconstructor 19290 | -3/Quarantine | Found Subatomic Replicator 19350 | -3/Quarantine | Discovered exit to Research (range 13) 19358 | -3/Quarantine | Found Terrabomb 19369 | -3/Quarantine | Entered Research 19369 | -2/Research | Evolved 2 slots: Propulsion x1, Utility x1 19393 | -2/Research | Build established: Hacker-Sprinter 19396 | -2/Research | Loaded intel: 5 recycling unit locations 19464 | -2/Research | Identified exit to Testing 19532 | -2/Research | Entered Testing 19591 | -2/Testing | Repaired Cld. Nuclear Pulse Thruster 19636 | -2/Testing | Repaired Cld. Nuclear Pulse Thruster 19653 | -2/Testing | Found Disintegrator 19714 | -2/Testing | Discovered new exit (range 12) 19729 | -2/Testing | Found Perforator 19742 | -2/Testing | Identified exit to Access 19775 | -2/Testing | Spotted Fortress 19786 | -2/Testing | Discovered new exit (range 6) 19786 | -2/Testing | Discovered new exit (range 6) 19787 | -2/Testing | Identified exit to Protoforge 19823 | -2/Testing | Entered Protoforge 19824 | -2/Protoforge | Sensed 2 artifacts in vicinity 19834 | -2/Protoforge | Spotted Hotshot 20048 | -2/Protoforge | Found Exp. System Purifier 20103 | -2/Protoforge | UFD initiated attack on Protoforge 20103 | -2/Protoforge | Loaded intel: 3 recycling unit locations 20123 | -2/Protoforge | Scraphulk reinforcements arrived 20123 | -2/Protoforge | Superfortress began startup sequence 20124 | -2/Protoforge | Scraphulk reinforcements arrived 20127 | -2/Protoforge | Spotted EXE-6 20127 | -2/Protoforge | Spotted EXE-6 20138 | -2/Protoforge | Found Exp. Core Analyzer 20139 | -2/Protoforge | Optimus greeted in Protoforge 20142 | -2/Protoforge | Found Cep. XC Strikerail 20143 | -2/Protoforge | Found Cep. XC Strikerail 20159 | -2/Protoforge | Spotted Decapitator 20159 | -2/Protoforge | Spotted Decapitator 20175 | -2/Protoforge | Spotted EXE-6 20184 | -2/Protoforge | Found Exp. Core Analyzer 20190 | -2/Protoforge | Spotted EXE-6 20200 | -2/Protoforge | Destroyed EXE-6 20214 | -2/Protoforge | Spotted AP7-3 20221 | -2/Protoforge | Spotted AP7-3 20222 | -2/Protoforge | Destroyed 02F01-K 20249 | -2/Protoforge | Allies destroyed AP7-3 20258 | -2/Protoforge | Allies destroyed AP7-3 20279 | -2/Protoforge | Met 7R-MNS 20298 | -2/Protoforge | Spotted Striker 20298 | -2/Protoforge | Spotted Striker 20303 | -2/Protoforge | Destroyed Striker 20306 | -2/Protoforge | Destroyed Striker 20327 | -2/Protoforge | Destroyed 13 combat bots 20334 | -2/Protoforge | Lost 15 allies 20356 | -2/Protoforge | Found 0bPrime Scrap Suit 20371 | -2/Protoforge | Spotted Hotshot 20372 | -2/Protoforge | Spotted Hotshot 20373 | -2/Protoforge | Destroyed Hotshot 20373 | -2/Protoforge | Destroyed Hotshot 20381 | -2/Protoforge | Used Terrabomb 20381 | -2/Protoforge | Spotted B-90 Cyclops 20383 | -2/Protoforge | Lost 3 allies 20422 | -2/Protoforge | Build established: Scavenger-Sprinter 20446 | -2/Protoforge | Lost 4 allies 20488 | -2/Protoforge | UFD reported confirmed Drillbomb installation 20523 | -2/Protoforge | Found UFD Drillbomb 20536 | -2/Protoforge | Installed UFD Drillbomb at designated target 20536 | -2/Protoforge | UFD reported confirmed Drillbomb installation 20553 | -2/Protoforge | Spotted Striker 20553 | -2/Protoforge | Spotted Striker 20553 | -2/Protoforge | Spotted Striker 20553 | -2/Protoforge | Spotted Executioner 20563 | -2/Protoforge | P-80 Master assimilated allied EI-K2W(E) 20564 | -2/Protoforge | Destroyed Striker 20570 | -2/Protoforge | Destroyed Striker 20571 | -2/Protoforge | Allies destroyed Striker 20579 | -2/Protoforge | Spotted Striker 20579 | -2/Protoforge | Spotted Striker 20581 | -2/Protoforge | Destroyed Striker 20584 | -2/Protoforge | Destroyed Striker 20621 | -2/Protoforge | Spotted Striker 20629 | -2/Protoforge | Spotted Executioner 20629 | -2/Protoforge | Spotted Executioner 20632 | -2/Protoforge | Lost 3 allies 20643 | -2/Protoforge | Destroyed Executioner 20647 | -2/Protoforge | Found Exp. Targeting Computer 20664 | -2/Protoforge | Destroyed 22 combat bots 20673 | -2/Protoforge | Lost 4 parts (2n2u) 20702 | -2/Protoforge | UFD reported confirmed Drillbomb installation 20714 | -2/Protoforge | Spotted Striker 20716 | -2/Protoforge | Spotted Striker 20726 | -2/Protoforge | Destroyed Striker 20754 | -2/Protoforge | Spotted Executioner 20778 | -2/Protoforge | Spotted Striker 20778 | -2/Protoforge | Spotted Executioner 20785 | -2/Protoforge | Spotted Executioner 20808 | -2/Protoforge | Found UFD Drillbomb 20811 | -2/Protoforge | Lost 5 parts (1p3n1u) 20818 | -2/Protoforge | Lost 8 allies 20846 | -2/Protoforge | Spotted Hotshot 20851 | -2/Protoforge | Installed UFD Drillbomb at designated target 20851 | -2/Protoforge | UFD reported confirmed Drillbomb installation 20882 | -2/Protoforge | Found UFD Drillbomb 20907 | -2/Protoforge | Destroyed Hotshot 20928 | -2/Protoforge | Installed UFD Drillbomb at designated target 20928 | -2/Protoforge | UFD reported confirmed Drillbomb installation 20946 | -2/Protoforge | Found UFD Drillbomb 20958 | -2/Protoforge | Installed UFD Drillbomb at designated target 20958 | -2/Protoforge | UFD reported confirmed Drillbomb installation 20961 | -2/Protoforge | Spotted Executioner 20966 | -2/Protoforge | Spotted Executioner 20974 | -2/Protoforge | Destroyed Executioner 20997 | -2/Protoforge | Found UFD Drillbomb 21019 | -2/Protoforge | Destroyed 7 combat bots 21022 | -2/Protoforge | Installed UFD Drillbomb at designated target 21022 | -2/Protoforge | UFD reported confirmed Drillbomb installation 21066 | -2/Protoforge | Spotted Striker 21086 | -2/Protoforge | Found UFD Drillbomb 21123 | -2/Protoforge | UFD reported confirmed Drillbomb installation 21149 | -2/Protoforge | Installed UFD Drillbomb at designated target 21149 | -2/Protoforge | UFD reported confirmed Drillbomb installation 21152 | -2/Protoforge | Spotted Striker 21155 | -2/Protoforge | Spotted Striker 21155 | -2/Protoforge | Spotted Striker 21156 | -2/Protoforge | Spotted Executioner 21164 | -2/Protoforge | Spotted Striker 21179 | -2/Protoforge | Destroyed Striker 21182 | -2/Protoforge | Destroyed Executioner 21226 | -2/Protoforge | Lost 4 allies 21235 | -2/Protoforge | Found UFD Drillbomb 21309 | -2/Protoforge | Spotted Executioner 21352 | -2/Protoforge | Spotted Hotshot 21355 | -2/Protoforge | Destroyed Hotshot 21388 | -2/Protoforge | Build established: Scavenger-Mutant 21397 | -2/Protoforge | Installed UFD Drillbomb at designated target 21397 | -2/Protoforge | UFD reported confirmed Drillbomb installation 21398 | -2/Protoforge | UFD began Drillbomb countdown 21426 | -2/Protoforge | Spotted Striker 21462 | -2/Protoforge | Found Scrap Suit 21480 | -2/Protoforge | Lost 3 allies 21480 | -2/Protoforge | Spotted Striker 21498 | *** | Defending 0bPrime! Last Messages --------------- 21493_ System corrupted: Impulse Thruster Array rejected. 21493_ 0bP_NET: LU-1G1, we know you're out there, digging away, so no moment of silence needed for you. 21493_ Acquired Impulse Thruster Array. 21494_ 0bP_NET: DD-05H though, you were a good one, we'll never forget the way you smashed your way west and just never stopped smashing. 21494_ N-04 Retriever collects Ovr. Huge Scrapsphere. 21495_ 0bP_NET: Well my eulogizing is soon to be interrupted by scenes of half of Protoforge collapsing in on itself. Be careful out there. 21495_ N-04 Retriever collects Ovr. Beamcaster. 21496_ 0bP_NET: T-2! 21496_ Forge Pylon damaged. 21497_ 0bP_NET: And that's a wrap. 21497_ Striker suffers critical hit (Destroy). 21497_ Slug penetrates Striker. Map ----- +----------------------------------------------------+ | ???# " " "" """""""""""""""""""""""""""%% | | ???# "" " """""""""""""""""""""""""""""% | | ???# "" " """""""""""""""""""""""""""""% | | #### " """""""""""""""""""""""""""""% | | # " """"""""""""""""""""""""""""" | | "" #%% % """ " " """""""""""""""""""""""""""""% | | " # % " """""""""""""""""""""""""""""% | | % % % " """"""""""""""""""""""""""""" | | %%% % """"" " """"""""""""""""""""""""""""" | | %%%%% % " """""""""""""""""""""""""""""% | | %%# %% " """""""""""""""""""""""""""% | | " # % % """"""""""""""""""""""""""" % | | ## % "" "" """"""""""""""""""""""""""" | | "#"# " " " """"""""""""""""""""""""" | | !"# " """"""""""""""""""""""" "" | | %|"# "" !!= """"""""""""""""""""" " | | = "# % % % "|=%[!!""""""""""""""""""" | | "## " % =""[ """"""""""""""""" " | | !T## "" %% " n """"""""""""""" "" "" | | %"## % E """"""""" "" | | !"## % n % SSSS "" "" " | | ="## % SSSS "" " | | ! ## % " K " " " | | ## """" """"% " | | ## " "" """"""""" | | #### " @ " SS | | ## " " "SS | | ""## "" " " " "" | | ## " """" " | | T"## "" """" "" " " | | ""## " " " % % """" | | ""## " | | ## % " " "" | | ## "" "" """" % "" | | ## """ % " " """""" " " | | ######### ##################################### | | ##??????####??????????????????????????##"""""#"" | | ##????????????????????????????????????????####" | | ####????????????????????????????????????????##"" | | ??##????????????????????????????????????????##"" | | ??##????????????????????????????????????????##"" | | ??##????????????????????????????????????????##"Y | | ??##????????????????????????????????????????##"" | | ??##????????????????????????????????????????##"" | | ####????????????????????????????????????????##"" | | ####????????????????????????????????????????####" | | ????????????????????????????????????????????####"" | | ??????????????????????????????????????????????#### | | ??????????????????????????????????????????????##"# | | ????????????????????????????????????????????????"# | +----------------------------------------------------+ Best States ------------- Heat Dissipation 95 Energy Generation 39 Energy Capacity 700 Matter Stores 1586 Matter Capacity 1800 Sight Range 23 Robot Scan Range 16 Terrain Scan Density 10 Jamming Range 16 Additional Mass Support 9 Armor Coverage 450 Resistance: TH 10 Weapon Shielding 90 Phase Shifting 15 Evasion (%) 82 Targeting Accuracy 14 Core Analysis 12 Recoil Reduction 3 Offensive Hacking 28 Defensive Hacking 16 Item Schematics ----------------- None Robot Schematics ------------------ None Fabricated ------------ Matter Neutralizer | x2 | -6/Factory | Preloaded Gamma Bomb Array | x1 | -6/Factory | Preloaded Cld. VTOL Module | x1 | -6/Factory Cld. VTOL Module | x1 | -6/Factory Repaired ---------- Lgt. Treads | 1% | -9/Materials Lgt. Treads | 37% | -9/Materials Arm. Treads | 63% | -8/Materials Hcp. Storage Unit | 49% | -8/Storage Adv. Heat Sink | 14% | -8/Storage Nuclear Pulse Thruster | 50% | -6/Factory Cld. Nuclear Pulse Thruster | 34% | -2/Testing Cld. Nuclear Pulse Thruster | 38% | -2/Testing Alien Tech Used ----------------- Integrated Dissipator Phase Redirector Core Reset Matrix Sigix Broadsword Terrabomb Achievements -------------- None Challenges ------------ None Game ------ Seed MasterCooledPenetrator Manual? 0 Play Time 06:05:41 Cumulative 125.6 hours Start 2025.05.19 @ 00:22:14 End 2025.05.20 @ 23:23:25 Sessions 9 Manual Loads 0 Difficulty Rogue Special Mode None Game No. 31 Rogue 31 Adventurer 0 Explorer 0 Win Type 9 Total 7 Types 0/0/3/0/0/1/2/0/0/1 Lore% 55 Gallery% 55 Achievement% 66 Wizard Run 0 Options --------- Layout 1 ASCII 0 Keyboard 0 Movement Arrows Keybinds 0 Fullscreen 2 Font 24/Terminus Map View 50x35 Zoom Use 0% Tactical HUD 1 Map Filters NONE Filters NONE Steam 1 RUN: 874c57cc-eb67-4236-a83c-1f19863b63e9